[Event "125-Jahre Werder Bremen 2024"]
[Site "Bremen"]
[Date "2024.03.06"]
[Round "5.1"]
[White "Aditya Mittal"]
[Black "Efimenko, Zahar"]
[Result "1-0"]
[ECO "C88"]
[WhiteElo "2594"]
[BlackElo "2568"]
[Annotator "TA"]
[PlyCount "83"]
[EventDate "2024.02.26"]
[EventType "swiss"]
[EventCountry "GER"]
[SourceTitle "playchess.com"]
[Source "ChessBase"]
[SourceQuality "1"]
[TimeControl "40/6000+30:1800+30"]

{[%evp 19,83,10,23,23,26,22,21,22,30,-31,-15,-24,0,0,12,-14,-8,-6,-10,-31,-20,-74,0,-17,0,0,0,-54,-43,-78,12,14,9,14,160,169,162,166,166,150,156,160,215,200,274,282,520,502,804,804,804,797,777,752,781,732,29977,29978,29978,29978,29977,29976,29956,3024,29976,29975]} 1. e4 {[%emt 0:00:02]} e5 {[%emt 0:00:47]} 2. Nf3 {[%emt 0:00:01]} Nc6 {[%emt 0:00:15]} 3. Bb5 {[%emt 0:00:02]} a6 {[%emt 0:00:10]} 4. Ba4 {[%emt 0:00:01]} Nf6 {[%emt 0:00:13]} 5. O-O {[%emt 0:00:04]} Be7 {[%emt 0:00:19]} 6. Re1 {[%emt 0:00:01]} b5 {[%emt 0:00:24]} 7. Bb3 {[%emt 0:00:01]} O-O {[%emt 0:00:18]} 8. h3 {[%emt 0:00:01]} Bb7 {[%emt 0:01:17]} 9. d3 {[%emt 0:00:05]} d6 {[%emt 0:02:23]} 10. a3 {[%emt 0:00:02]} Nb8 {[%emt 0:09:12]} 11. Nbd2 {[%emt 0:01:49] C88: Closed Ruy Lopez: Anti-Marshall Systems.} Nbd7 {[%emt 0:02:00]} 12. Nf1 {[%emt 0:00:28]} Nc5 {[%emt 0:04:02]} 13. Ba2 {[%emt 0:00:24]} Ne6 {[%emt 0:00:27]} 14. g4 $1 $146 {[%emt 0:15:11][%mdl 8] A relevant novelty.} (14. Ng3 $11) ({Predecessor:} 14. Ng3 Re8 15. Ng5 Bc8 16. Qf3 h6 17. Nxe6 Bxe6 18. Nf5 Bf8 19. g4 Bxa2 20. Rxa2 {½-½ Shankland,S (2731)-Wojtaszek,R (2722) Prague Masters 1st 2019 (7.4)}) 14... Re8 {[%emt 0:07:46]} 15. Ng3 {[%emt 0:02:37]} g6 {[%emt 0:00:12]} 16. Be3 {[%emt 0:10:35]} c5 {[%emt 0:02:13]} 17. c3 {[%emt 0:04:04]} Rc8 {[%emt 0:02:24]} 18. g5 {[%emt 0:04:39][%cal Oa2e6]} Nd7 {[%emt 0:00:34]} 19. h4 {[%emt 0:00:11]} c4 {[%emt 0:10:24]} 20. d4 {[%emt 0:05:01]} (20. dxc4 $11 bxc4 21. Nd2) 20... d5 {[%emt 0:04:12]} ({Black should play} 20... Nf4 $17 {...Nd3 is the strong threat.} 21. Bb1 f6) 21. Nxe5 {[%emt 0:20:40]} dxe4 {[%emt 0:10:04]} 22. Ng4 {[%emt 0:04:01]} Bf8 {[%emt 0:08:17] ...h5 would now be deadly.} 23. d5 {[%emt 0:05:02]} ({Better is} 23. Bb1 $1 $11 h5 24. Nh2) 23... Nc7 $1 $15 {[%emt 0:00:29]} 24. Bb1 {[%emt 0:10:22]} (24. d6 Nd5 25. Bb1 h5 26. Bxe4 Nxe3 27. Rxe3 Bxe4 28. Nxe4 hxg4 29. Qxg4 Ne5 $17) 24... Bxd5 {[%emt 0:09:21]} (24... Nxd5 $6 25. Bxe4 h5 26. Bxd5 $14) (24... h5 $1 $17 {[%cal Rh5g4]} 25. Nh6+ Bxh6 26. gxh6 Nxd5 (26... Bxd5 27. Bg5 $15) (26... Qxh4 27. Qd4 $15) 27. Bxe4 Ne5) 25. Bxe4 $11 {[%emt 0:08:15]} Bxe4 {[%emt 0:05:52]} 26. Qxd7 $1 {[%emt 0:00:06]} Nd5 {[%emt 0:03:51] Repels Nf6+} (26... Qxd7 $11 27. Nf6+ Kh8 28. Nxd7 Bc6 29. Bd4+ Bg7) 27. Qxd8 $1 $16 {[%emt 0:03:47]} Rcxd8 {[%emt 0:00:15] [#]} 28. Bb6 $1 {[%emt 0:00:23]} Nxb6 {[%emt 0:02:43]} 29. Nf6+ {[%emt 0:00:02]} (29. Nxe4 Kg7 $16) 29... Kh8 {[%emt 0:00:06][%cal Oe4c6] Hoping for ...Bc6!} 30. Nxe8 {[%emt 0:02:02]} ({Much less strong is} 30. Ngxe4 $6 Re6 $14) ({Weaker is} 30. Rxe4 Rxe4 31. Ngxe4 Na4 $15) 30... Bd3 {[%emt 0:00:03]} (30... Bf3 $16 31. Nf6 Na4) 31. Nf6 {[%emt 0:01:32]} Na4 {[%emt 0:02:03]} 32. Re5 {[%emt 0:01:16]} h5 $2 {[%emt 0:01:55]} (32... Nc5 33. Rae1 Ne6) 33. Rae1 $18 {[%emt 0:01:34]} Nxb2 {[%emt 0:00:33]} (33... Kg7 $142 34. Ngxh5+ (34. Re8 Rxe8 35. Rxe8 Nxb2 $18) 34... gxh5) 34. Re8 $18 {[%emt 0:02:23]} Rxe8 {[%emt 0:00:05]} 35. Rxe8 {[%emt 0:00:02]} Kg7 {[%emt 0:00:11]} 36. f4 {[%emt 0:02:27]} Na4 {[%emt 0:01:47] [#]} 37. f5 $1 {[%emt 0:00:46][%mdl 512]} Nxc3 {[%emt 0:05:07] [#]} (37... Bxf5 38. Nxf5+) 38. Ngxh5+ $1 {[%emt 0:03:40][%mdl 512]} gxh5 {[%emt 0:00:06]} 39. Nxh5+ {[%emt 0:00:02]} Kg8 {[%emt 0:00:27]} 40. Nf6+ {[%emt 0:00:03]} Kg7 {[%emt 0:00:03] [#]} 41. h5 $1 {[%emt 0:32:17] White wants to mate with h6+.} Ne2+ {[%emt 0:33:19]} 42. Kf2 {[%emt 0:00:46]} 1-0

[Event "125-Jahre Werder Bremen 2024"]
[Site "Bremen"]
[Date "2024.03.06"]
[Round "5.2"]
[White "Wachinger, Nikolas"]
[Black "Cheng, Bobby"]
[Result "0-1"]
[ECO "B11"]
[WhiteElo "2442"]
[BlackElo "2584"]
[Annotator "TA"]
[PlyCount "94"]
[EventDate "2024.02.26"]
[EventType "swiss"]
[EventCountry "GER"]
[SourceTitle "playchess.com"]
[Source "ChessBase"]
[SourceQuality "1"]
[TimeControl "40/6000+30:1800+30"]

{[%evp 11,94,11,15,16,33,0,25,0,0,3,20,18,32,25,30,24,35,13,16,20,28,19,18,18,20,10,10,-40,-38,-54,-61,-215,-208,-207,-189,-168,-161,-161,-158,-257,-234,-246,-243,-244,-237,-241,-231,-216,-218,-238,-178,-245,-205,-205,-152,-129,-140,-226,-170,-219,-221,-259,-256,-254,-256,-303,-299,-333,-320,-334,-335,-338,-339,-330,-329,-322,-306,-285,-285,-387,-389,-457,-452,-556,-509]} 1. e4 {[%emt 0:03:01]} c6 {[%emt 0:00:03]} 2. Nf3 {[%emt 0:00:15]} d5 {[%emt 0:00:05]} 3. Nc3 {[%emt 0:00:04]} Bg4 {[%emt 0:00:11]} 4. h3 {[%emt 0:01:05]} Bxf3 {[%emt 0:00:09]} 5. Qxf3 {[%emt 0:00:09]} e6 {[%emt 0:00:50]} 6. Be2 {[%emt 0:00:24]} d4 {[%emt 0:00:58] B11: Caro-Kann (Zweispringer-Variante).} 7. Nb1 {[%emt 0:00:28]} Ne7 {[%emt 0:00:42]} 8. Qg3 $146 {[%emt 0:05:48]} ({Predecessor:} 8. d3 h5 9. h4 Ng6 10. g3 Bb4+ 11. Kf1 Nd7 12. Qg2 Nge5 13. a3 Ba5 14. f4 {0-1 Bacrot,E (2683)-Keymer,V (2743) Chessable Masters Play In rapid 2024 (2)}) 8... Ng6 {[%emt 0:08:17]} 9. f4 {[%emt 0:02:02]} Bd6 {[%emt 0:06:17]} 10. d3 {[%emt 0:04:13]} O-O {[%emt 0:03:57]} 11. O-O {[%emt 0:05:01]} f5 {[%emt 0:06:23]} 12. e5 {[%emt 0:07:18]} Bc5 {[%emt 0:05:56]} 13. Nd2 {[%emt 0:05:37]} a5 {[%emt 0:00:06]} 14. a4 {[%emt 0:01:49]} Na6 {[%emt 0:01:21]} 15. Kh2 {[%emt 0:08:10]} Nb4 {[%emt 0:10:23]} 16. c3 {[%emt 0:22:01]} Nc2 {[%emt 0:07:14]} 17. Rb1 {[%emt 0:02:35]} Ne3 {[%emt 0:07:17]} 18. Rf3 {[%emt 0:16:27]} Qb6 {[%emt 0:02:07] [#]} 19. b4 {[%emt 0:13:19]} (19. Ra1 $1 $11) 19... axb4 $15 {[%emt 0:10:02]} 20. cxb4 {[%emt 0:00:06]} Bxb4 {[%emt 0:02:49]} 21. a5 $2 {[%emt 0:04:43]} ({Vorzuziehen ist} 21. Rxe3 $1 $15 dxe3 22. Nc4) 21... Qxa5 $19 {[%emt 0:09:45]} (21... Rxa5 22. Rxe3 dxe3 23. Nc4 $17) 22. Nb3 {[%emt 0:00:36]} Qa2 {[%emt 0:00:21]} 23. Rb2 {[%emt 0:00:08]} Qa7 {[%emt 0:00:04]} 24. Bxe3 {[%emt 0:03:42]} dxe3 {[%emt 0:00:06]} 25. Bd1 {[%emt 0:00:07]} (25. Rf1 $17) 25... Bc3 {[%emt 0:16:14]} 26. Re2 {[%emt 0:00:35]} Qb6 {[%emt 0:02:48]} 27. Rfxe3 {[%emt 0:00:51]} Rfd8 {[%emt 0:01:58]} 28. h4 {[%emt 0:00:54]} Qb4 {[%emt 0:01:03]} 29. Rf3 {[%emt 0:00:28]} Ne7 {[%emt 0:03:09]} 30. h5 {[%emt 0:00:30]} Rd7 {[%emt 0:00:21]} 31. Qf2 {[%emt 0:01:05]} (31. d4 $142 Nd5 (31... Bxd4 32. Nxd4 Rxd4 33. Rb3 $17) 32. h6) 31... Rad8 {[%emt 0:01:17]} 32. Bc2 {[%emt 0:00:31]} Bd4 {[%emt 0:00:20]} 33. Nxd4 {[%emt 0:01:13]} Rxd4 {[%emt 0:00:05]} 34. Qh4 {[%emt 0:00:07]} (34. Re1 $17 {ist wohl besser.}) 34... Kf7 {[%emt 0:01:38]} 35. h6 {[%emt 0:00:56]} (35. Re1 $142) 35... Ng6 $19 {[%emt 0:00:40]} 36. Qg5 {[%emt 0:00:09]} Qe7 {[%emt 0:00:53]} (36... Nxf4 $2 37. Re4 (37. Qxg7+ Ke8 $16) (37. Rxf4 Rxf4 38. Qxd8 Rh4+ 39. Kg1 Qf4 $11) 37... Ng6 (37... fxe4 38. Qxf4+ Kg6 39. Rg3+ Kh5 40. Qg5#) 38. Qxd8 Rxd8 39. Rxb4 $18) 37. Qxe7+ {[%emt 0:00:25]} Kxe7 {[%emt 0:00:57]} 38. hxg7 {[%emt 0:01:06]} Nxf4 {[%emt 0:01:44]} ({Finger weg von} 38... Rxf4 39. Rxf4 Nxf4 40. Rf2 $19) 39. Ref2 {[%emt 0:00:03]} Ng6 {[%emt 0:00:39]} (39... Nxd3 $2 {ist das falsche Schlagen.} 40. Rxd3 Rh4+ 41. Kg1 $18) 40. Rh3 {[%emt 0:00:13]} Rg8 {[%emt 0:00:45]} 41. Rxh7 {[%emt 0:02:24]} Nxe5 {[%emt 0:04:12]} 42. Re2 {[%emt 0:07:15]} Ng4+ {[%emt 0:01:15]} ({Minderwertig wäre} 42... Nxd3 43. Rd2 $16) 43. Kg1 {[%emt 0:00:41]} Nf6 {[%emt 0:03:31]} 44. Rh8 {[%emt 0:01:01]} Rxg7 {[%emt 0:00:53]} 45. Rb8 {[%emt 0:00:22]} Rb4 {[%emt 0:03:19]} 46. Kf1 {[%emt 0:02:00]} Nd5 {[%emt 0:00:42]} 47. Ra8 {[%emt 0:01:34]} Rb2 {[%emt 0:00:50]} 0-1

[Event "125-Jahre Werder Bremen 2024"]
[Site "Bremen"]
[Date "2024.03.06"]
[Round "5.3"]
[White "Teclaf, Pawel"]
[Black "Gumularz, Szymon"]
[Result "1/2-1/2"]
[ECO "E05"]
[WhiteElo "2556"]
[BlackElo "2590"]
[Annotator "TA"]
[PlyCount "40"]
[EventDate "2024.02.26"]
[EventType "swiss"]
[EventCountry "GER"]
[SourceTitle "playchess.com"]
[Source "ChessBase"]
[SourceQuality "1"]
[TimeControl "40/6000+30:1800+30"]

{[%evp 35,40,0,0,0,18,0,0]} 1. d4 {[%emt 0:00:02]} Nf6 {[%emt 0:00:10]} 2. c4 {[%emt 0:00:03]} e6 {[%emt 0:00:05]} 3. g3 {[%emt 0:00:02]} d5 {[%emt 0:00:07]} 4. Nf3 {[%emt 0:00:03]} Be7 {[%emt 0:00:10]} 5. Bg2 {[%emt 0:00:04]} O-O {[%emt 0:00:07]} 6. O-O {[%emt 0:00:03]} dxc4 {[%emt 0:00:08]} 7. Qa4 {[%emt 0:00:03]} a6 {[%emt 0:05:38]} 8. Qxc4 {[%emt 0:00:04]} b5 {[%emt 0:00:05]} 9. Qc2 {[%emt 0:00:02]} Bb7 {[%emt 0:00:04]} 10. Bd2 {[%emt 0:00:02]} Be4 {[%emt 0:00:17]} 11. Qc1 {[%emt 0:00:06]} Bb7 {[%emt 0:00:30]} 12. Qc2 {[%emt 0:01:55]} Be4 {[%emt 0:01:07]} 13. Qc1 {[%emt 0:00:03]} Bb7 {[%emt 0:00:04]} 14. Qc2 {[%emt 0:00:02]} Be4 {[%emt 0:00:08]} 15. Qc1 {[%emt 0:00:05]} Bb7 {[%emt 0:00:19]} 16. Qc2 {[%emt 0:00:04]} Be4 {[%emt 0:00:05]} 17. Qc1 {[%emt 0:00:03]} Bb7 {[%emt 0:00:04]} 18. Qc2 {[%emt 0:00:03]} Be4 {[%emt 0:00:03] The position is equal.} 19. Qc1 {[%emt 0:00:04]} Bb7 {[%emt 0:00:02]} 20. Qc2 {[%emt 0:00:05]} Be4 {[%emt 0:00:04] A rather calm draw.   Weighted Error Value: White=0.08 (flawless) /Black=0.00 (flawless) .  OK:         	---       	Black=2} 1/2-1/2

[Event "125-Jahre Werder Bremen 2024"]
[Site "Bremen"]
[Date "2024.03.06"]
[Round "5.4"]
[White "Gloeckler, Christian"]
[Black "Pajeken, Jakob Leon"]
[Result "1/2-1/2"]
[ECO "B90"]
[WhiteElo "2356"]
[BlackElo "2424"]
[Annotator "TA"]
[PlyCount "42"]
[EventDate "2024.02.26"]
[EventType "swiss"]
[EventCountry "GER"]
[SourceTitle "playchess.com"]
[Source "ChessBase"]
[SourceQuality "1"]
[TimeControl "40/6000+30:1800+30"]

{[%evp 12,42,15,18,30,23,34,30,36,37,38,-3,0,2,0,0,-7,-9,32,19,25,22,15,26,37,24,62,36,39,40,61,33,124]} 1. e4 {[%emt 0:00:03]} c5 {[%emt 0:00:24]} 2. Nf3 {[%emt 0:00:09]} d6 {[%emt 0:00:06]} 3. d4 {[%emt 0:00:05]} cxd4 {[%emt 0:00:04]} 4. Nxd4 {[%emt 0:00:05]} Nf6 {[%emt 0:00:03]} 5. Nc3 {[%emt 0:00:05]} a6 {[%emt 0:00:03]} 6. h3 {[%emt 0:00:12]} e5 {[%emt 0:00:05]} 7. Nde2 {[%emt 0:00:07]} h5 {[%emt 0:00:10]} 8. g3 {[%emt 0:00:14]} Nbd7 {[%emt 0:00:34]} 9. a4 {[%emt 0:01:48]} b6 {[%emt 0:00:10] White has an edge.} 10. Bg2 {[%emt 0:01:11]} Bb7 {[%emt 0:00:48]} 11. Be3 {[%emt 0:06:11]} Be7 {[%emt 0:00:59]} 12. O-O {[%emt 0:01:06]} O-O {[%emt 0:04:23]} 13. Nd5 {[%emt 0:10:04]} Nxd5 {[%emt 0:03:23]} 14. exd5 {[%emt 0:00:08]} h4 {[%emt 0:01:58]} 15. g4 {[%emt 0:17:05]} Bg5 {[%emt 0:02:02]} 16. Nc3 {[%emt 0:11:23]} Bxe3 {[%emt 0:43:49]} 17. fxe3 {[%emt 0:00:13]} Nf6 {[%emt 0:03:53]} 18. Qd3 {[%emt 0:11:52]} Rc8 {[%emt 0:01:25]} 19. Rf5 {[%emt 0:01:55] White is slightly better.} g6 {[%emt 0:04:03]} 20. Rf2 {[%emt 0:03:08]} Nh7 {[%emt 0:03:24]} 21. Raf1 {[%emt 0:05:55] White is more active.} Ng5 {[%emt 0:00:29] Weighted Error Value: White=0.08 (flawless) /Black=0.07 (flawless) .  Mistake:       	---       	Black=1      Inaccurate:     	White=3     	Black=2      OK:         	White=7     	Black=8} ({Black should try} 21... Rc7 $14) 1/2-1/2

[Event "125-Jahre Werder Bremen 2024"]
[Site "Bremen"]
[Date "2024.03.06"]
[Round "5.5"]
[White "Plat, Vojtech"]
[Black "Hejazipour, Mitra"]
[Result "1-0"]
[ECO "B50"]
[WhiteElo "2528"]
[BlackElo "2356"]
[Annotator "TA"]
[PlyCount "87"]
[EventDate "2024.02.26"]
[EventType "swiss"]
[EventCountry "GER"]
[SourceTitle "playchess.com"]
[Source "ChessBase"]
[SourceQuality "1"]
[TimeControl "40/6000+30:1800+30"]

{[%evp 11,87,14,6,0,0,0,0,0,0,0,-2,-13,-14,0,0,-28,-33,-25,-21,-24,-8,-20,0,0,0,0,9,-41,-47,-44,-43,-67,0,0,0,0,0,-16,10,20,13,0,0,0,0,0,0,-27,-34,-20,0,-8,-6,-32,17,18,28,26,286,265,410,417,407,406,635,630,756,702,3396,2887,1998,2072,997,643,625,416,616,616]} 1. e4 {[%emt 0:00:30]} c5 {[%emt 0:00:13]} 2. Nf3 {[%emt 0:00:09]} d6 {[%emt 0:00:13]} 3. c3 {[%emt 0:00:10]} Nf6 {[%emt 0:00:50]} 4. Be2 {[%emt 0:00:04]} g6 {[%emt 0:00:48]} 5. O-O {[%emt 0:00:06]} Bg7 {[%emt 0:00:18]} 6. Bb5+ {[%emt 0:00:06]} Nc6 {[%emt 0:02:01]} 7. d4 {[%emt 0:00:07][%cal Bd2d4,Bd4d5][%mdl 32]} O-O {[%emt 0:01:28]} (7... Nxe4 $6 8. d5 $16) 8. d5 {[%emt 0:02:19]} a6 {[%emt 0:01:33]} 9. Bd3 {[%emt 0:00:31] The position is equal.} (9. Bxc6 bxc6 10. dxc6 Nxe4 $17) 9... Na5 {[%emt 0:00:51]} 10. Nbd2 {[%emt 0:07:43]} b5 {[%emt 0:11:38]} 11. Re1 {[%emt 0:01:24]} e6 {[%emt 0:05:51]} 12. dxe6 {[%emt 0:06:18]} Bxe6 {[%emt 0:00:18]} 13. a4 {[%emt 0:00:15]} Qb6 {[%emt 0:27:04]} 14. h3 {[%emt 0:02:25]} Rfe8 {[%emt 0:01:10]} 15. axb5 {[%emt 0:05:50]} axb5 {[%emt 0:03:09]} 16. Bc2 {[%emt 0:07:41]} Nc6 {[%emt 0:04:00]} 17. Rxa8 {[%emt 0:00:50]} Rxa8 {[%emt 0:00:01]} 18. Nf1 {[%emt 0:04:20]} d5 {[%emt 0:15:31]} 19. Ng5 {[%emt 0:00:55]} ({White should try} 19. exd5 $11 Bxd5 20. Bg5) 19... d4 $15 {[%emt 0:01:26]} 20. Nxe6 {[%emt 0:06:49]} fxe6 {[%emt 0:00:03]} 21. cxd4 {[%emt 0:08:04]} cxd4 {[%emt 0:00:24]} (21... Nxd4 $15 22. Be3 Nd7) 22. Bb3 $11 {[%emt 0:01:43]} Na5 {[%emt 0:00:48]} 23. Bc2 {[%emt 0:04:49]} Nd7 {[%emt 0:00:45]} 24. Kh1 {[%emt 0:01:48]} e5 {[%emt 0:00:33]} (24... Nc4 $5) 25. Ne3 {[%emt 0:02:24]} Nf6 {[%emt 0:02:36]} 26. Nd5 {[%emt 0:01:10]} Nxd5 {[%emt 0:00:03]} 27. exd5 {[%emt 0:00:07]} Nc4 {[%emt 0:01:50]} 28. b3 {[%emt 0:05:32]} Nd6 {[%emt 0:00:17]} 29. Qg4 {[%emt 0:08:36]} Qc7 {[%emt 0:01:56]} 30. Bb1 {[%emt 0:01:52]} Qc3 {[%emt 0:02:04][%csl LRb3,LRe1]} 31. Qe6+ {[%emt 0:01:38]} Nf7 {[%emt 0:00:23]} 32. Rg1 {[%emt 0:00:40]} Qc8 {[%emt 0:15:04]} ({Much weaker is} 32... Qxb3 33. Be4 $11) (32... d3 $15 {might be stronger.} 33. Be3 Qxb3) 33. Be4 {[%emt 0:00:48] Black is weak on the light squares} Qf8 {[%emt 0:00:56]} 34. Bd2 {[%emt 0:04:02]} Ra2 $2 {[%emt 0:02:10][%mdl 8192] [#] This move loses the game for Black.} (34... Re8 $11 {and Black is okay.} 35. Qd7 Rd8) 35. Bg5 $1 $18 {[%emt 0:05:19] This pair of bishops is nice.} Ra6 {[%emt 0:04:39]} (35... Bh6 {was necessary.} 36. Be7 Qe8) 36. Qxa6 {[%emt 0:00:33]} Nxg5 {[%emt 0:00:02]} 37. f3 {[%emt 0:02:06][%cal Bf2f3,Bf3e4][%mdl 32]} Nxe4 {[%emt 0:06:04]} (37... Qf6 $142 38. Ra1 (38. Qxb5 Bf8 $18) 38... Qxa6 39. Rxa6 Nxe4) 38. fxe4 {[%emt 0:00:23][%mdl 4096] Endgame. KQR-KQB} d3 {[%emt 0:00:00][%cal Bd4d3,Bd3d2][%mdl 32]} 39. Qe6+ {[%emt 0:00:23]} Kh8 {[%emt 0:00:00]} 40. d6 {[%emt 0:00:05] [#] White threatens d7 and mate.} d2 {[%emt 0:00:00]} 41. d7 {[%emt 0:30:21] White wants to mate with Qe8.} Bf6 {[%emt 0:28:39]} 42. Qe8 {[%emt 0:00:09]} Kg7 {[%emt 0:00:07]} 43. Qxf8+ {[%emt 0:00:05]} Kxf8 {[%emt 0:00:01]} 44. Rd1 {[%emt 0:00:06] Weighted Error Value: White=0.24 (precise) /Black=0.37.  Loses game:     	---       	Black=1      Mistake:       	White=1     	Black=4      Inaccurate:     	White=3     	Black=1      OK:         	White=16    	Black=14     Best:        	White=1     	Black=1      Strong:       	White=1     	---} 1-0

[Event "125-Jahre Werder Bremen 2024"]
[Site "Bremen"]
[Date "2024.03.06"]
[Round "5.6"]
[White "Schneider, Jana"]
[Black "Meins, Gerlef"]
[Result "1-0"]
[ECO "B72"]
[WhiteElo "2303"]
[BlackElo "2390"]
[Annotator "TA"]
[PlyCount "43"]
[EventDate "2024.02.26"]
[EventType "swiss"]
[EventCountry "GER"]
[SourceTitle "playchess.com"]
[Source "ChessBase"]
[SourceQuality "1"]
[TimeControl "40/6000+30:1800+30"]

{[%evp 14,43,28,35,37,25,67,45,36,37,23,29,36,40,33,14,31,-12,0,0,122,147,262,256,1353,1453,1433,1423,1276,1322,29997,29998]} 1. e4 {[%emt 0:00:04]} c5 {[%emt 0:00:09]} 2. Nf3 {[%emt 0:00:08]} d6 {[%emt 0:00:39]} 3. d4 {[%emt 0:00:11]} cxd4 {[%emt 0:00:06]} 4. Nxd4 {[%emt 0:00:05]} Nf6 {[%emt 0:00:21]} 5. Nc3 {[%emt 0:00:11]} a6 {[%emt 0:01:10]} 6. Bd3 {[%emt 0:05:57]} g6 {[%emt 0:09:32]} 7. f3 {[%emt 0:01:33]} Bg7 {[%emt 0:00:28]} 8. Be3 {[%emt 0:00:18]} Nc6 {[%emt 0:05:22]} 9. Qd2 {[%emt 0:05:34]} d5 {[%emt 0:19:20]} 10. O-O-O {[%emt 0:19:31] White is more active.} O-O {[%emt 0:07:46] White is slightly better.} 11. Nxc6 {[%emt 0:05:32]} bxc6 {[%emt 0:00:19]} 12. Bh6 {[%emt 0:13:09]} Qa5 {[%emt 0:25:00]} 13. Bxg7 {[%emt 0:06:03]} Kxg7 {[%emt 0:00:15]} 14. h4 {[%emt 0:00:29] e5 would now be deadly.} dxe4 {[%emt 0:11:34]} 15. fxe4 {[%emt 0:03:04][%cal Oh4h5]} Be6 {[%emt 0:09:39][%cal Oh7h5]} 16. h5 {[%emt 0:04:39] Strongly threatening hxg6.} gxh5 {[%emt 0:01:24]} ({But not} 16... Nxh5 $6 17. g4 Bxg4 18. Rdg1 $16) (16... Ng4 $11) 17. Qf4 $16 {[%emt 0:04:59] Threatens to win with e5.} Ng4 {[%emt 0:02:07] [#]} (17... Nd7 $16) 18. Nd5 $1 $18 {[%emt 0:02:55] Black must now prevent Qg5+.} cxd5 $2 {[%emt 0:06:34]} (18... Rg8) 19. Qg5+ {[%emt 0:00:16]} Kh8 {[%emt 0:00:02]} 20. Rxh5 {[%emt 0:00:38]} Nf6 {[%emt 0:00:23] [#]} 21. Rdh1 $1 {[%emt 0:01:11][%cal Oh5h7] Rxh7+! would kill now.} Rg8 {[%emt 0:05:28] [#]} (21... Qe1+ 22. Rxe1) 22. Qxf6+ $3 {[%emt 0:00:07][%mdl 512] Weighted Error Value: White=0.07 (flawless) /Black=0.97.  Mistake:       	---       	Black=3      Inaccurate:     	White=1     	Black=1      OK:         	White=5     	Black=2      Best:        	White=2     	---        Strong:       	White=1     	---} 1-0